[Event "26th Triest Festival 2024"]
[Site "Triest"]
[Date "2024.09.02"]
[Round "2.10"]
[White "Motola, Jacopo"]
[Black "Schnaider, Ilan"]
[Result "1/2-1/2"]
[Annotator "TA"]
[ECO "D10"]
[WhiteElo "2207"]
[BlackElo "2409"]
[PlyCount "44"]
[EventDate "2024.09.02"]
[EventType "swiss"]
[EventCountry "ITA"]
[SourceTitle "playchess.com"]
[Source "ChessBase"]
[SourceQuality "1"]
[TimeControl "5400+30"]

{[%evp 10,44,18,31,32,15,45,33,38,36,38,20,24,24,33,18,20,23,30,27,32,24,22,13,42,11,16,5,5,22,70,81,79,75,70,72,77]} 1. d4 {[%emt 0:00:02]} d5 {[%emt 0:00:08]} 2. c4 {[%emt 0:00:41]} c6 {[%emt 0:00:16]} 3. Nc3 {[%emt 0:00:16]} Nf6 {[%emt 0:00:09]} 4. e3 {[%emt 0:00:10]} Bf5 {[%emt 0:00:38]} 5. cxd5 {[%emt 0:00:41]} cxd5 {[%emt 0:00:05]} 6. Qb3 {[%emt 1:31:40]} Nc6 {[%emt 0:00:07]} 7. Qxb7 {[%emt 0:00:00]} Bd7 {[%emt 0:00:12] [#] aiming for ...Rb8.} 8. Qb3 {[%emt 0:00:00][%cal Og1f3]} Rb8 {[%emt 0:00:05] White is slightly better.} 9. Qd1 {[%emt 0:00:00]} e5 {[%emt 0:00:05]} 10. Nf3 {[%emt 0:00:00]} Bd6 {[%emt 0:06:30]} 11. dxe5 {[%emt 0:00:00]} Nxe5 {[%emt 0:00:06]} 12. Be2 {[%emt 0:00:00]} (12. Nxd5 Nxf3+ 13. gxf3 O-O $11) 12... Qc7 {[%emt 0:00:26]} 13. h3 {[%emt 0:00:00]} O-O {[%emt 0:00:48]} 14. O-O {[%emt 0:00:00]} (14. Nxd5 $2 Nxd5 15. Qxd5 Bc6 $17) 14... Nxf3+ {[%emt 0:00:35]} 15. Bxf3 {[%emt 0:00:00]} Rfd8 {[%emt 0:00:08]} 16. Ne2 {[%emt 0:00:00][%cal Ob2b3]} (16. Bxd5 Bc6 17. Bxc6 (17. e4 Nxe4 18. Nxe4 Bh2+ 19. Kh1 Rxd5 $15) 17... Bh2+ 18. Kh1 Rxd1 (18... Qxc6 19. Qf3 $16) 19. Rxd1 Bg3 $16) 16... Bh2+ {[%emt 0:17:27]} 17. Kh1 {[%emt 0:00:00][%cal Og2g3] next g3! is good for White.} Be5 {[%emt 0:00:07]} 18. Nd4 {[%emt 0:00:00]} Ne4 {[%emt 0:00:26]} 19. b3 {[%emt 0:00:00]} Bxd4 {[%emt 0:26:40]} (19... Rb6 $11 {was preferrable.} 20. Bb2 Re8) 20. Qxd4 $14 {[%emt 0:00:00][%cal Oc1b2] Threatens to win with Bb2!} Bb5 {[%emt 0:00:05] [#]} 21. Bb2 $1 {[%emt 0:00:00][%csl Gb2][%cal Rd4g7]} f6 {[%emt 0:00:06]} 22. Bxe4 {[%emt 0:00:00]} ({Much worse is} 22. Rac1 Qe7 $11) 22... dxe4 {[%emt 0:05:22] Weighted Error Value: White=0.02 (flawless) /Black=0.05 (flawless) .  Mistake:       	---       	Black=1      Inaccurate:     	White=1     	---        OK:         	White=7     	Black=7      Best:        	White=1     	Black=3      Strong:       	White=1     	---} 1/2-1/2

[Event "26th Triest Festival 2024"]
[Site "Triest"]
[Date "2024.09.02"]
[Round "2.11"]
[White "Lever, Erwan"]
[Black "Fischer, Daniel"]
[Result "0-1"]
[Annotator "TA"]
[ECO "E00"]
[WhiteElo "2193"]
[BlackElo "2349"]
[PlyCount "72"]
[EventDate "2024.09.02"]
[EventType "swiss"]
[EventCountry "ITA"]
[SourceTitle "playchess.com"]
[Source "ChessBase"]
[SourceQuality "1"]
[TimeControl "5400+30"]

{[%evp 12,72,11,0,22,8,17,18,11,7,12,10,8,0,-4,-89,-65,-123,-111,-127,-104,-110,-98,-96,-72,-89,-60,-29,-37,-97,-99,-132,-98,-130,-133,-139,-128,-136,-131,-445,-435,-441,-384,-547,-531,-525,-536,-506,-394,-392,-289,-297,-307,-288,-220,-445,-474,-543,-530,-29996,-637,-630,-414]} 1. d4 {[%emt 0:01:43]} Nf6 {[%emt 0:00:06]} 2. c4 {[%emt 0:00:07]} e6 {[%emt 0:00:04]} 3. g3 {[%emt 0:00:07]} Bb4+ {[%emt 0:00:21]} 4. Nd2 {[%emt 0:00:08]} c5 {[%emt 0:00:13]} 5. a3 {[%emt 0:00:45]} Bxd2+ {[%emt 0:00:07]} 6. Qxd2 {[%emt 0:00:11]} cxd4 {[%emt 0:00:19]} 7. Nf3 {[%emt 0:00:27]} d5 {[%emt 0:03:39]} 8. cxd5 {[%emt 0:04:33]} e5 {[%emt 0:01:17]} 9. Bg2 {[%emt 0:01:39]} Nbd7 {[%emt 0:00:25][%cal Oe8g8] The position is equal.} 10. O-O {[%emt 0:02:02]} O-O {[%emt 0:00:06][%cal Of8e8]} 11. Qc2 {[%emt 0:05:25]} b6 {[%emt 0:02:22][%cal Oc8b7]} 12. Bg5 {[%emt 0:10:00]} Re8 {[%emt 0:08:05]} 13. Rfc1 {[%emt 0:14:03]} (13. Rfe1 $11 {remains equal.}) 13... Bb7 {[%emt 0:13:31]} 14. Nd2 {[%emt 0:05:34]} (14. d6 $15) 14... h6 $17 {[%emt 0:04:48]} 15. Qc7 {[%emt 0:03:04] Strongly threatening Bxf6.} hxg5 {[%emt 0:31:25]} 16. Qxb7 {[%emt 0:00:26]} Nc5 {[%emt 0:00:19]} 17. Qc6 {[%emt 0:00:31]} Rc8 {[%emt 0:07:58]} 18. Qb5 {[%emt 0:00:18]} e4 {[%emt 0:00:14]} 19. b4 {[%emt 0:07:14]} e3 $36 {[%emt 0:00:59][%mdl 2048] Black is pushing.} 20. bxc5 {[%emt 0:00:33]} ({White should play} 20. fxe3 $15 dxe3 21. Nf1) 20... exd2 {[%emt 0:00:13]} 21. Rc2 {[%emt 0:05:23] Hoping for c6.} Nxd5 {[%emt 0:02:06] Black is more active.} 22. Rxd2 {[%emt 0:01:33]} Nc3 {[%emt 0:01:32]} ({Much weaker is} 22... Rxc5 $6 23. Qd3 Qe7 24. Bf3 $11) 23. Qa6 {[%emt 0:03:11]} bxc5 {[%emt 0:00:44]} ({Much less strong is} 23... Rxc5 24. e3 $15) 24. e3 {[%emt 0:00:34]} Qb6 {[%emt 0:01:44]} 25. Qd3 {[%emt 0:04:41][%mdl 8192] [#] This move loses the game for White.} (25. Qxb6 $17 {is tougher.} axb6 26. Rc2) 25... c4 $1 $19 {[%emt 0:01:54]} 26. Qf5 {[%emt 0:04:42]} dxe3 {[%emt 0:03:46]} 27. fxe3 {[%emt 0:00:19]} (27. Rd7 $142 exf2+ 28. Qxf2) 27... Qxe3+ {[%emt 0:00:33]} 28. Rf2 {[%emt 0:00:05]} Rc7 {[%emt 0:00:22]} 29. Kh1 {[%emt 0:02:04]} Re5 {[%emt 0:01:57]} 30. Qc2 {[%emt 0:00:22] Black must now prevent Rf3.} Qd3 {[%emt 0:01:05] Threatens to win with ...Rd7.} 31. Rc1 {[%emt 0:00:56]} Qxc2 {[%emt 0:02:09]} 32. Rfxc2 {[%emt 0:00:03]} Nb5 {[%emt 0:00:49]} 33. a4 $2 {[%emt 0:02:46]} (33. Bf1 {is a better defense.}) 33... Nd4 {[%emt 0:00:23]} 34. Rxc4 {[%emt 0:02:49]} Rxc4 {[%emt 0:00:14]} 35. Rc2 {[%emt 0:19:42] [#]} Rc3 36. Rxc3 {[%emt 0:00:00]} Re1+ {[%emt 0:00:00] Weighted Error Value: White=0.61/Black=0.37.  Loses game:     	White=1     	---        Mistake:       	White=5     	Black=1      Inaccurate:     	White=3     	Black=1      OK:         	White=7     	Black=11     Best:        	White=2     	Black=3      Strong:       	---       	Black=1} 0-1

[Event "26th Triest Festival 2024"]
[Site "Triest"]
[Date "2024.09.02"]
[Round "2.12"]
[White "Marn, Jan"]
[Black "Colonetti, Fabio"]
[Result "1-0"]
[Annotator "TA"]
[ECO "D02"]
[WhiteElo "2344"]
[BlackElo "2118"]
[PlyCount "77"]
[EventDate "2024.09.02"]
[EventType "swiss"]
[EventCountry "ITA"]
[SourceTitle "playchess.com"]
[Source "ChessBase"]
[SourceQuality "1"]
[TimeControl "5400+30"]

{[%evp 9,77,18,5,13,0,16,20,7,17,0,0,0,0,0,18,0,0,0,-3,-15,-28,-19,-20,-20,-14,-16,-17,-31,-9,-30,-25,-48,-62,-69,-18,-14,0,0,0,-21,-19,-24,0,0,0,0,0,0,0,15,4,0,8,14,9,14,10,21,326,310,320,191,189,193,342,328,499,502,29963,6452]} 1. d4 {[%emt 0:04:04]} Nf6 {[%emt 0:00:21]} 2. Nf3 {[%emt 0:00:17]} g6 {[%emt 0:00:29]} 3. Nbd2 {[%emt 0:00:07]} d5 {[%emt 0:00:52]} 4. e3 {[%emt 0:00:14]} Bg7 {[%emt 0:00:26]} 5. b4 {[%emt 0:00:07]} a5 {[%emt 0:00:42]} 6. b5 {[%emt 0:00:11]} c5 {[%emt 0:00:41]} 7. bxc6 {[%emt 0:00:13]} Nxc6 {[%emt 0:00:19]} 8. a4 {[%emt 0:00:07] The position is equal.} O-O {[%emt 0:03:29]} 9. Be2 {[%emt 0:00:09]} Bf5 {[%emt 0:01:42]} 10. c3 {[%emt 0:00:11] Dodges Nb4} Qc7 {[%emt 0:08:26][%cal Oc6b4] aiming for ...Nb4!} 11. O-O {[%emt 0:06:25]} Rfc8 {[%emt 0:06:11]} 12. Qb3 {[%emt 0:00:12]} e5 {[%emt 0:09:35]} 13. h3 {[%emt 0:00:22]} exd4 {[%emt 0:03:42]} 14. exd4 {[%emt 0:00:09]} Nd8 {[%emt 0:13:09][%cal Bc6d8,Bd8e6,Be6f4,Bf4d3][%mdl 32]} 15. Bb2 {[%emt 0:03:51]} Ne6 {[%emt 0:01:16]} 16. Rfe1 {[%emt 0:19:53]} Nf4 {[%emt 0:02:56]} 17. Bf1 {[%emt 0:00:12]} Nd3 {[%emt 0:05:41]} 18. Bxd3 {[%emt 0:00:15]} Bxd3 {[%emt 0:00:07]} 19. Ne5 {[%emt 0:00:15]} Bf5 {[%emt 0:02:57]} 20. Nf1 {[%emt 0:04:08][%cal Bd2f1,Bf1e3,Be3c4,Bc4b6][%mdl 32]} Be6 {[%emt 0:04:29]} 21. Ne3 {[%emt 0:04:44]} Re8 {[%emt 0:02:22]} (21... Ra6 $15) 22. Rac1 {[%emt 0:12:52]} Rad8 {[%emt 0:06:14]} 23. c4 {[%emt 0:12:03]} dxc4 {[%emt 0:02:55][%cal Oc7e5]} 24. N3xc4 {[%emt 0:00:03]} Bh6 {[%emt 0:07:17] A strong pair of Bishops.} 25. Rc2 {[%emt 0:00:38]} Bf5 {[%emt 0:06:11]} 26. Rce2 {[%emt 0:00:44][%cal Od4d5] [#] And now d5! would win.} Be6 {[%emt 0:03:41]} 27. Qb5 {[%emt 0:04:38]} Rd5 {[%emt 0:03:38]} 28. Qb6 {[%emt 0:00:08]} Qxb6 {[%emt 0:01:13]} 29. Nxb6 {[%emt 0:00:02] Black must now prevent Ng4.} Rdd8 {[%emt 0:00:11]} 30. Nd3 {[%emt 0:09:09]} Bf5 {[%emt 0:02:55]} 31. Nc5 {[%emt 0:02:07]} Rxe2 {[%emt 0:00:59]} 32. Rxe2 {[%emt 0:00:02][%cal Og2g4]} Bf8 {[%emt 0:00:37]} 33. g4 {[%emt 0:03:30]} (33. Nxb7 $2 Rb8 34. Bc3 Rxb7 $19) 33... Bxc5 $4 {[%emt 0:00:43][%mdl 8192] Black cannot hold the game after this.} (33... Bb1 $11 {and Black has nothing to worry.}) 34. dxc5 $18 {[%emt 0:00:18]} Rd1+ {[%emt 0:00:29]} 35. Kg2 {[%emt 0:09:20]} (35. Kh2 $142 {[%cal Og4f5]} Bd3 36. Re7) 35... Be4+ {[%emt 0:00:07] [#]} 36. Kg3 $1 {[%emt 0:00:05]} ({Much less strong is} 36. f3 $6 Bd3 37. Kf2 Nxg4+ (37... Bxe2 $2 38. Kxe2 Rh1 39. Bxf6 $18) 38. fxg4 (38. hxg4 Bxe2 39. Kxe2 Rh1 $14) 38... Bxe2 39. Kxe2 Rh1 $14) 36... Rd3+ {[%emt 0:00:40]} (36... Bd3 {might work better.} 37. Kf3 Bxe2+ (37... Kg7 $2 38. Re7 $18) 38. Kxe2 Rg1) 37. Kh2 {[%emt 0:02:00]} Bf3 {[%emt 0:00:40]} (37... Nxg4+ $142 38. hxg4 f5) 38. Re7 {[%emt 0:00:06]} Kg7 {[%emt 0:00:35]} (38... Nxg4+ $18 39. hxg4 Bc6) 39. g5 {[%emt 0:00:06] Weighted Error Value: White=0.07 (flawless) /Black=0.47.  Loses game:     	---       	Black=1      Mistake:       	White=1     	Black=4      OK:         	White=13    	Black=19     Best:        	White=3     	Black=1      Strong:       	White=1     	---} 1-0